bitfinex-derivatives/quotes_BTCF0:USTF0_20250812
["timestamp","ask_amount","ask_price","bid_price","bid_amount"]
[1755011575123,0.004,119500.0,119490.0,0.71933651]
[1755011575324,0.08559,119500.0,119490.0,0.71933651]
[1755011575620,0.1858471,119500.0,119490.0,0.21090903]
[1755011575832,0.1858471,119500.0,119490.0,1.03602903]
[1755011576729,0.69427458,119500.0,119490.0,0.21090903]
[1755011576927,0.2030271,119500.0,119490.0,1.03602903]
[1755011577127,0.1858471,119500.0,119490.0,1.03602903]
[1755011577529,0.1858471,119500.0,119490.0,1.54445651]
[1755011578731,0.1858471,119500.0,119490.0,0.71933651]
[1755011580232,0.10217,119500.0,119490.0,0.71933651]
[1755011580834,0.1858471,119500.0,119490.0,0.71933651]
[1755011581837,0.69427458,119500.0,119490.0,1.03590903]
[1755011582035,0.71145458,119500.0,119490.0,1.03590903]
[1755011582336,0.71145458,119500.0,119490.0,0.19698903]
[1755011582737,0.71145458,119500.0,119490.0,0.21068903]
[1755011582932,0.83145458,119500.0,119490.0,0.21068903]
[1755011583735,0.2030271,119500.0,119490.0,0.21068903]
[1755011584040,0.1368271,119500.0,119490.0,0.71911651]
[1755011584234,0.1848371,119500.0,119490.0,0.71911651]
[1755011584637,0.1848371,119500.0,119490.0,0.21068903]
[1755011584838,0.1848371,119500.0,119490.0,0.71911651]
[1755011585435,0.1848371,119500.0,119490.0,0.21068903]
[1755011587843,0.69326458,119500.0,119490.0,0.21068903]
[1755011588038,0.82044458,119500.0,119490.0,0.21068903]
[1755011588240,0.71044458,119500.0,119490.0,0.21068903]
[1755011588439,0.82044458,119500.0,119490.0,0.21068903]
[1755011588638,0.82044458,119500.0,119490.0,0.19688903]
[1755011589345,0.82044458,119500.0,119490.0,0.21058903]
[1755011590749,0.82044458,119500.0,119490.0,0.19688903]
[1755011590949,0.82044458,119500.0,119490.0,0.21058903]
[1755011591944,0.3120171,119500.0,119490.0,0.21058903]
[1755011592145,0.2020171,119500.0,119490.0,0.21058903]
[1755011592450,0.83044458,119500.0,119490.0,0.21058903]
[1755011593144,0.1503571,119500.0,119490.0,0.71901651]
[1755011593351,0.1848371,119500.0,119490.0,0.71901651]
[1755011594653,0.1848369,119500.0,119490.0,0.71901651]
[1755011598753,0.1848969,119500.0,119490.0,0.21058903]
[1755011599650,0.80332438,119500.0,119490.0,0.21058903]
[1755011599953,0.71050438,119500.0,119490.0,0.21058903]
[1755011601355,0.83050438,119500.0,119490.0,0.16443903]
[1755011602253,0.83050438,119500.0,119490.0,0.19688903]
[1755011602552,0.2020769,119500.0,119490.0,0.21058903]
[1755011602756,0.71050438,119500.0,119490.0,0.21058903]
[1755011603052,0.83050438,119500.0,119490.0,0.14244903]
[1755011603254,0.83050438,119500.0,119490.0,0.13245903]
[1755011603549,0.2020769,119500.0,119490.0,0.21055903]
[1755011603752,0.69332438,119500.0,119490.0,0.21055903]
[1755011604357,0.71050438,119500.0,119490.0,0.21055903]
[1755011604552,0.71050438,119500.0,119490.0,0.19685903]
[1755011604751,0.2020769,119500.0,119490.0,0.21055903]
[1755011604959,0.84050438,119500.0,119490.0,0.21055903]
[1755011605859,0.82332438,119500.0,119490.0,0.21055903]
[1755011606051,0.80332438,119500.0,119490.0,0.21055903]
[1755011606252,0.2020769,119500.0,119490.0,0.21055903]
[1755011606448,0.2020769,119500.0,119490.0,0.71898651]
[1755011606653,0.1713669,119500.0,119490.0,0.71898651]
[1755011606860,0.1321069,119500.0,119490.0,0.71898651]
[1755011607261,0.1456369,119500.0,119490.0,0.21055903]
[1755011607461,0.1669569,119500.0,119490.0,0.71898651]
[1755011607657,0.1669569,119500.0,119490.0,0.21055903]
[1755011607658,0.1835969,119500.0,119490.0,0.21055903]
[1755011607867,0.62737438,119500.0,119490.0,0.21055903]
[1755011608052,0.1835969,119500.0,119490.0,0.21055903]
[1755011608658,0.004,119500.0,119490.0,0.71898651]
[1755011610965,0.004,119500.0,119490.0,0.21055903]
[1755011611164,0.0479,119500.0,119490.0,0.21055903]
[1755011611366,0.0479,119500.0,119490.0,0.71898651]
[1755011611666,0.0439,119500.0,119490.0,0.72098651]
[1755011611865,0.0439,119500.0,119490.0,0.21255903]
[1755011612065,0.0439,119500.0,119490.0,0.72098651]
[1755011613565,0.00942,119500.0,119490.0,0.72098651]
[1755011614562,0.0930968,119500.0,119490.0,0.72098651]
[1755011614764,0.1410868,119500.0,119490.0,0.72098651]
[1755011615157,0.0836768,119500.0,119490.0,0.13369903]
[1755011615362,0.70565428,119500.0,119490.0,0.21517903]
[1755011615561,0.68847428,119500.0,119490.0,0.21517903]
[1755011615969,0.1800468,119500.0,119490.0,0.21517903]
[1755011616271,0.68847428,119500.0,119490.0,0.21517903]
[1755011616573,0.68847428,119500.0,119490.0,0.72360651]
[1755011616869,0.1800468,119500.0,119490.0,0.72360651]
[1755011617072,0.1800468,119500.0,119490.0,0.21517903]
[1755011617273,0.1800468,119500.0,119490.0,0.72360651]
[1755011617474,0.1800468,119500.0,119490.0,0.21517903]
[1755011619476,0.00984,119500.0,119490.0,0.21517903]
[1755011619677,0.89111078,119510.0,119500.0,0.0836768]
[1755011619876,0.89150078,119510.0,119500.0,0.2049868]
[1755011620174,0.90868078,119510.0,119500.0,0.2049868]
[1755011620375,0.95667078,119510.0,119500.0,0.2049868]
[1755011621975,0.95767078,119510.0,119500.0,0.2049868]
[1755011622177,0.95767078,119510.0,119500.0,0.1900268]
[1755011622373,1.08767078,119510.0,119500.0,0.0836768]
[1755011622674,1.08767078,119510.0,119500.0,0.1074268]
[1755011623074,1.17134758,119510.0,119500.0,0.0836768]
[1755011623477,1.15416758,119510.0,119500.0,0.1551268]
[1755011623674,1.08767078,119510.0,119500.0,0.2049868]
[1755011623869,1.07049078,119510.0,119500.0,0.2049868]
[1755011624065,0.98681398,119510.0,119500.0,0.2049868]
[1755011624478,0.2647129,119510.0,119500.0,0.2049868]
[1755011624678,0.3747129,119510.0,119500.0,0.2049868]
[1755011624879,0.2647129,119510.0,119500.0,0.2049868]
[1755011626682,0.77314038,119510.0,119500.0,0.2049868]
[1755011628976,0.1810411,119510.0,119500.0,0.2049868]
[1755011629477,0.03383,119510.0,119500.0,0.2049868]
[1755011629685,0.001,119510.0,119500.0,1.53761428]
[1755011629979,0.9557589,119540.0,119530.0,0.0836559]
[1755011630178,0.1800188,119540.0,119530.0,0.71339338]
[1755011630384,1.6800188,119540.0,119530.0,0.71339338]
[1755011630767,1.6800188,119540.0,119530.0,0.2049659]
[1755011631673,1.7001988,119540.0,119530.0,0.2049659]
[1755011631870,1.6820188,119540.0,119530.0,0.2049659]
[1755011632081,1.6860188,119540.0,119530.0,0.2049659]
[1755011632281,0.1860188,119540.0,119530.0,0.2049659]
[1755011632876,0.1840188,119540.0,119530.0,0.2049659]
[1755011634484,0.1840188,119540.0,119530.0,0.21311463]
[1755011635577,0.10037,119540.0,119530.0,0.72154211]
[1755011637974,0.1840188,119540.0,119530.0,0.21311463]
[1755011638180,0.1840197,119540.0,119530.0,0.21311463]
[1755011638572,0.004,119540.0,119530.0,0.72154211]
[1755011638980,0.06183,119540.0,119530.0,0.72154211]
[1755011639181,0.01384,119540.0,119530.0,0.72154211]
[1755011639582,0.01184,119540.0,119530.0,0.72154211]
[1755011639783,0.00984,119540.0,119530.0,0.72154211]
[1755011640083,0.05783,119540.0,119530.0,0.72154211]
[1755011640479,0.08082,119540.0,119530.0,0.72154211]
[1755011640681,0.09637,119540.0,119530.0,0.21311463]
[1755011640878,0.18002,119540.0,119530.0,0.21311463]
[1755011641080,1.66018748,119540.0,119530.0,0.19815463]
[1755011641282,1.66014748,119540.0,119530.0,0.21311463]
[1755011642382,1.66014748,119540.0,119530.0,0.13163463]
[1755011642581,1.66014748,119540.0,119530.0,0.11569463]
[1755011643087,1.66014748,119540.0,119530.0,0.13118463]
[1755011643285,1.66014748,119540.0,119530.0,0.19612463]
[1755011643485,1.66014748,119540.0,119530.0,0.21063463]
[1755011643683,1.15172,119540.0,119530.0,0.21063463]
[1755011644082,1.0216,119540.0,119530.0,0.21063463]
[1755011645589,1.1416,119540.0,119530.0,0.21063463]
[1755011645777,1.0216,119540.0,119530.0,0.21063463]
[1755011646889,1.0216001,119540.0,119530.0,0.21063463]
[1755011647594,1.1316001,119540.0,119530.0,0.21063463]
[1755011647890,1.1416001,119540.0,119530.0,0.21063463]
[1755011648192,1.65002758,119540.0,119530.0,0.21063463]
[1755011650388,1.65002758,119540.0,119530.0,0.0836559]
[1755011650580,0.083657,119530.0,119520.0,0.0836568]
[1755011650785,0.82569448,119530.0,119520.0,0.0836568]
[1755011651191,0.82569448,119530.0,119520.0,0.09203779]
[1755011651391,0.82569448,119530.0,119520.0,0.1075468]
[1755011651793,0.82569448,119530.0,119520.0,0.1085468]
[1755011652193,0.317267,119530.0,119520.0,0.1240368]
[1755011652392,0.299087,119530.0,119520.0,0.71191428]
[1755011652589,0.299087,119530.0,119520.0,0.71291428]
[1755011652795,0.317267,119530.0,119520.0,0.71291428]
[1755011652997,0.317267,119530.0,119520.0,0.2044868]
[1755011654600,0.317267,119530.0,119520.0,0.2024868]
[1755011654894,0.179087,119530.0,119520.0,0.2024868]
[1755011655897,0.179087,119530.0,119520.0,0.21082701]
[1755011657501,0.197267,119530.0,119520.0,0.21082701]
[1755011660097,0.179087,119530.0,119520.0,0.21082701]
[1755011660596,0.197267,119530.0,119520.0,0.21082701]
[1755011660992,0.327267,119530.0,119520.0,0.21082701]
[1755011661194,0.197267,119530.0,119520.0,0.21082701]
[1755011662293,0.70569448,119530.0,119520.0,0.21082701]
[1755011662787,0.81569448,119530.0,119520.0,0.21082701]
[1755011665293,0.289087,119530.0,119520.0,0.21082701]
[1755011665686,0.289087,119530.0,119520.0,0.71925449]
[1755011666392,0.289087,119530.0,119520.0,0.21082701]
[1755011667185,0.179087,119530.0,119520.0,0.21082701]
[1755011667391,0.317267,119530.0,119520.0,0.21082701]
[1755011667595,0.197267,119530.0,119520.0,0.21082701]
[1755011667897,0.327267,119530.0,119520.0,0.21082701]
[1755011668098,0.197267,119530.0,119520.0,0.21082701]
[1755011668292,0.317267,119530.0,119520.0,0.21082701]
[1755011668598,0.82569448,119530.0,119520.0,0.21082701]
[1755011669588,0.083664,119520.0,119500.0,0.1075637]
[1755011669794,0.70570848,119510.0,119500.0,0.2904036]
[1755011669994,0.82570848,119510.0,119500.0,0.2904036]
[1755011670194,0.197281,119510.0,119500.0,0.3553436]
[1755011670396,0.179101,119510.0,119500.0,0.87828108]
[1755011670689,0.179101,119510.0,119500.0,0.88028108]
[1755011671099,0.179101,119510.0,119500.0,0.88842646]
[1755011671493,0.179101,119510.0,119500.0,0.88642646]
[1755011671693,0.179101,119510.0,119500.0,0.88842646]
[1755011671902,0.179101,119510.0,119500.0,0.38299898]
[1755011672098,1.2047343,119520.0,119510.0,0.083671]
[1755011672304,1.0773941,119520.0,119510.0,0.71097848]
[1755011672606,1.0373941,119520.0,119510.0,0.202551]
[1755011672789,0.2155541,119520.0,119510.0,0.202551]
[1755011672995,0.2817141,119520.0,119510.0,0.202551]
[1755011673497,0.2817141,119520.0,119510.0,0.205551]
[1755011674500,0.2635341,119520.0,119510.0,0.205551]
[1755011674905,0.2635341,119520.0,119510.0,0.71397848]
[1755011675304,0.3917141,119520.0,119510.0,0.205551]
[1755011675498,0.90014158,119520.0,119510.0,0.205551]
[1755011676003,0.90014158,119520.0,119510.0,0.111251]
[1755011679301,0.90014158,119520.0,119510.0,0.086671]
[1755011679902,0.90014158,119520.0,119510.0,0.111251]
[1755011681999,0.3917141,119520.0,119510.0,0.111251]
[1755011682199,0.90014158,119520.0,119510.0,0.086671]
[1755011682910,0.90014158,119520.0,119510.0,0.003]
[1755011684002,0.90214158,119520.0,119510.0,0.002]
[1755011684204,0.90214158,119520.0,119510.0,0.085671]
[1755011684403,0.90214158,119520.0,119510.0,0.158201]
[1755011684608,0.90214158,119520.0,119510.0,0.206291]
[1755011684800,0.3937141,119520.0,119510.0,0.206291]
[1755011685511,0.3957141,119520.0,119510.0,0.204291]
[1755011686108,0.3775341,119520.0,119510.0,0.156201]
[1755011686406,0.3957141,119520.0,119510.0,0.204291]
[1755011691011,0.90414158,119520.0,119510.0,0.204291]
[1755011691213,0.90414158,119520.0,119510.0,0.190751]
[1755011691416,0.90414158,119520.0,119510.0,0.204291]
[1755011692817,0.90414158,119520.0,119510.0,0.190751]
[1755011693114,0.90414158,119520.0,119510.0,0.156201]
[1755011694211,0.90414158,119520.0,119510.0,0.07253]
[1755011694417,0.083671,119510.0,119500.0,0.28375658]
[1755011694716,0.81583848,119510.0,119500.0,0.28375658]
[1755011695212,0.81583848,119510.0,119500.0,0.33445658]
[1755011695414,0.81534765,119510.0,119500.0,0.33445658]
[1755011695615,0.81534765,119510.0,119500.0,0.35693658]
[1755011695809,0.81534765,119510.0,119500.0,0.36625658]
[1755011696116,0.81534765,119510.0,119500.0,0.37979658]
[1755011696312,0.30692017,119510.0,119500.0,0.37979658]
[1755011696512,0.81534765,119510.0,119500.0,0.37979658]
[1755011698713,0.81534765,119510.0,119500.0,0.29611948]
[1755011699120,0.81534765,119510.0,119500.0,0.00814538]
[1755011699317,0.81534765,119510.0,119500.0,0.108258]
[1755011699922,0.81534765,119510.0,119500.0,0.02458]
[1755011700217,0.81534765,119510.0,119500.0,0.108258]
[1755011700614,1.63682765,119510.0,119500.0,0.108258]
[1755011700918,0.29274017,119510.0,119500.0,0.204298]
[1755011701117,0.18274017,119510.0,119500.0,0.204298]
[1755011701320,0.18274017,119510.0,119500.0,0.71272548]
[1755011701620,0.18274017,119510.0,119500.0,0.204298]
[1755011701822,0.11118017,119510.0,119500.0,0.71272548]
[1755011702012,0.18274017,119510.0,119500.0,0.21262775]
[1755011702214,0.29274017,119510.0,119500.0,0.72105523]
[1755011702415,0.30892017,119510.0,119500.0,0.72105523]
[1755011702919,0.19892017,119510.0,119500.0,0.21262775]
[1755011703221,0.19692017,119510.0,119500.0,0.21262775]
[1755011705623,0.71534765,119510.0,119500.0,0.21152775]
[1755011707120,0.20692017,119510.0,119500.0,0.21152775]
[1755011707424,0.71534765,119510.0,119500.0,0.21152775]
[1755011709918,0.20692017,119510.0,119500.0,0.21152775]
[1755011710119,0.71534765,119510.0,119500.0,0.21152775]
[1755011711125,0.20692017,119510.0,119500.0,0.21152775]
[1755011712133,0.19692017,119510.0,119500.0,0.71995523]
[1755011712433,0.17962017,119510.0,119500.0,0.71995523]
[1755011713328,0.16407017,119510.0,119500.0,0.71995523]
[1755011713623,0.16407017,119510.0,119500.0,0.21152775]
[1755011713828,0.16407017,119510.0,119500.0,0.71995523]
[1755011717830,0.15054017,119510.0,119500.0,0.71995523]
[1755011718519,0.16407017,119510.0,119500.0,0.71995523]
[1755011720431,0.09294017,119510.0,119500.0,0.71995523]
[1755011720623,0.2510051,119520.0,119500.0,0.97098403]
[1755011720824,0.2994452,119530.0,119510.0,1.64916448]
[1755011721024,0.2645226,119530.0,119520.0,0.2031836]
[1755011721334,0.3745226,119530.0,119520.0,0.2031836]
[1755011722033,0.3945226,119530.0,119520.0,0.2031836]
[1755011722233,0.3965226,119530.0,119520.0,0.2031836]
[1755011722622,0.1828605,119530.0,119520.0,0.2031836]
[1755011722828,0.0856566,119530.0,119520.0,0.71161108]
[1755011723434,0.002,119530.0,119520.0,0.71161108]
[1755011723936,0.38308,119540.0,119530.0,0.0836566]
[1755011724133,0.43182,119540.0,119530.0,0.2031766]
[1755011725434,0.43382,119540.0,119530.0,0.2031766]
[1755011726136,0.43582,119540.0,119530.0,0.2031766]
[1755011726737,0.3521644,119540.0,119530.0,0.2031766]
[1755011726937,0.2685088,119540.0,119530.0,0.2031766]
[1755011727238,0.0970934,119540.0,119530.0,0.71160408]
[1755011727540,0.1455534,119540.0,119530.0,0.2031766]
[1755011727739,0.1687934,119540.0,119530.0,0.2031766]
[1755011728036,0.08514,119540.0,119530.0,0.71160408]
[1755011728241,0.0876496,119540.0,119530.0,0.71160408]
[1755011728430,0.004,119540.0,119530.0,0.71160408]
[1755011730938,0.0836292,119570.0,119560.0,0.0836356]
[1755011731238,0.82743668,119570.0,119560.0,0.2031556]
[1755011731838,0.3008292,119570.0,119560.0,0.2031556]
[1755011732635,0.80925668,119570.0,119560.0,0.2031556]
[1755011732841,0.81525668,119570.0,119560.0,0.2031556]
[1755011733032,0.82025668,119570.0,119560.0,0.2031556]
[1755011733235,0.82025668,119570.0,119560.0,0.21150479]
[1755011733540,0.83843668,119570.0,119560.0,0.21150479]
[1755011735545,0.3300092,119570.0,119560.0,0.21150479]
[1755011736943,0.3118292,119570.0,119560.0,0.21150479]
[1755011738437,0.3300092,119570.0,119560.0,0.21150479]
[1755011739941,0.3118292,119570.0,119560.0,0.21150479]
[1755011741045,0.3300092,119570.0,119560.0,0.21150479]
[1755011742846,0.3300092,119570.0,119560.0,0.71993227]
[1755011745445,0.3118292,119570.0,119560.0,0.71993227]
[1755011745945,0.2950692,119570.0,119560.0,0.71993227]
[1755011746346,0.2804392,119570.0,119560.0,0.71993227]
[1755011746548,0.2950692,119570.0,119560.0,0.71993227]
[1755011746850,0.3116292,119570.0,119560.0,0.71993227]
[1755011747847,0.0001,119580.0,119560.0,1.47926105]
[1755011748049,0.0001,119580.0,119570.0,1.47781528]
[1755011749148,0.0051,119580.0,119570.0,1.47781528]
[1755011749646,0.2149664,119610.0,119600.0,0.3344114]
[1755011749854,0.2623464,119610.0,119600.0,1.77645888]
[1755011750155,0.2623464,119610.0,119600.0,0.96241888]
[1755011750156,0.2856264,119610.0,119600.0,0.96241888]
[1755011750351,0.2856264,119610.0,119600.0,0.4539914]
[1755011751557,0.2856264,119610.0,119600.0,0.4569914]
[1755011751855,0.2856264,119610.0,119600.0,0.4599914]
[1755011752744,0.92405388,119610.0,119600.0,0.2091804]
[1755011753545,0.2856264,119610.0,119600.0,0.2091804]
[1755011754439,0.79405388,119610.0,119600.0,0.2091804]
[1755011755254,0.91405388,119610.0,119600.0,0.1618404]
[1755011755556,0.91405388,119610.0,119600.0,0.006]
[1755011756843,0.0836139,119590.0,119580.0,0.02418]
[1755011757048,0.80983138,119590.0,119580.0,0.1078009]
[1755011757248,0.82446138,119590.0,119580.0,0.1078009]
[1755011757463,0.70446138,119590.0,119580.0,0.1560909]
[1755011757657,0.1960339,119590.0,119580.0,0.1560909]
[1755011757959,0.81446138,119590.0,119580.0,0.1560909]
[1755011758156,0.81446138,119590.0,119580.0,0.1590909]
[1755011758358,0.81446138,119590.0,119580.0,0.1138009]
[1755011758659,0.3060339,119590.0,119580.0,0.1138009]
[1755011758861,0.81446138,119590.0,119580.0,0.1138009]
[1755011759159,0.81446138,119590.0,119580.0,0.1620909]
[1755011759459,0.81446138,119590.0,119580.0,0.2092009]
[1755011759657,0.70446138,119590.0,119580.0,0.2092009]
[1755011759953,0.81446138,119590.0,119580.0,0.2092009]
[1755011760348,0.81446138,119590.0,119580.0,0.1948909]
[1755011760856,0.81446138,119590.0,119580.0,0.006]
[1755011764961,0.083627,119570.0,119560.0,0.11582198]
[1755011765158,0.80688448,119570.0,119560.0,0.11582198]
[1755011765461,0.298457,119570.0,119560.0,0.11582198]
[1755011765760,0.81688448,119570.0,119560.0,0.11582198]
[1755011766260,0.81688448,119570.0,119560.0,0.13135198]
[1755011766459,0.81688448,119570.0,119560.0,0.16607198]
[1755011766660,0.308457,119570.0,119560.0,0.16607198]
[1755011766863,0.81688448,119570.0,119560.0,0.16607198]
[1755011767261,0.81688448,119570.0,119560.0,0.19812198]
[1755011767462,0.81888448,119570.0,119560.0,0.21257198]
[1755011767762,0.81888448,119570.0,119560.0,0.1896324]
[1755011769358,0.083641,119550.0,119540.0,0.2746382]
[1755011769558,0.130421,119550.0,119540.0,0.46338551]
[1755011769758,0.188471,119550.0,119540.0,0.46338551]
[1755011770065,0.177191,119550.0,119540.0,0.46338551]
[1755011770763,0.177191,119550.0,119540.0,0.46638551]
[1755011770958,0.177191,119550.0,119540.0,0.46838551]
[1755011771364,0.69689848,119550.0,119540.0,0.30109091]
[1755011772670,0.82689848,119550.0,119540.0,0.1946436]
[1755011772872,0.82689848,119550.0,119540.0,0.1599236]
[1755011773166,0.81689848,119550.0,119540.0,0.1599236]
[1755011773468,0.81889848,119550.0,119540.0,0.1896436]
[1755011774062,0.69889848,119550.0,119540.0,0.1896436]
[1755011774465,0.69889848,119550.0,119540.0,0.2040936]
[1755011775269,0.82889848,119550.0,119540.0,0.2040936]
[1755011775470,0.69889848,119550.0,119540.0,0.2040936]
[1755011776768,0.80889848,119550.0,119540.0,0.2040936]
[1755011777074,0.80889848,119550.0,119540.0,0.1896482]
[1755011778562,0.80889848,119550.0,119540.0,0.2040982]
[1755011779372,0.69889848,119550.0,119540.0,0.2040982]
[1755011779768,0.81889848,119550.0,119540.0,0.2040982]
[1755011779970,0.69889848,119550.0,119540.0,0.2040982]
[1755011780161,0.190471,119550.0,119540.0,0.2040982]
[1755011780768,0.179191,119550.0,119540.0,0.2040982]
[1755011782370,0.68761848,119550.0,119540.0,0.2040982]
[1755011782974,0.179191,119550.0,119540.0,0.2040982]
[1755011783974,0.81889848,119550.0,119540.0,0.1896482]
[1755011784875,0.310471,119550.0,119540.0,0.2040982]
[1755011785076,0.81889848,119550.0,119540.0,0.2040982]
[1755011785267,0.81889848,119550.0,119540.0,0.2040981]
[1755011787489,0.083648,119540.0,119530.0,0.1756851]
[1755011787681,0.083655,119530.0,119520.0,1.110509]
[1755011787977,0.80691248,119530.0,119520.0,0.300149]
[1755011788178,0.80691248,119530.0,119520.0,0.371429]
[1755011789673,0.79563248,119530.0,119520.0,0.1549373]
[1755011789880,0.80691248,119530.0,119520.0,0.16349138]
[1755011790382,0.80791248,119530.0,119520.0,0.16349138]
[1755011790579,0.309485,119530.0,119520.0,0.16349138]
[1755011790882,0.81791248,119530.0,119520.0,0.19821138]
[1755011791270,0.81791248,119530.0,119520.0,0.21266138]
[1755011792181,0.309485,119530.0,119520.0,0.21266138]
[1755011792382,0.81791248,119530.0,119520.0,0.21266138]
[1755011792878,0.81791248,119530.0,119520.0,0.07128]
[1755011793080,0.0836621,119520.0,119510.0,0.223596]
[1755011793390,0.81958958,119520.0,119510.0,0.271476]
[1755011793686,0.81958958,119520.0,119510.0,0.29382675]
[1755011794188,0.1911621,119520.0,119510.0,0.29582675]
[1755011794487,0.3111621,119520.0,119510.0,0.29682675]
[1755011794677,0.1911621,119520.0,119510.0,0.29682675]
[1755011794991,0.2898821,119520.0,119510.0,0.29682675]
[1755011795380,0.1798821,119520.0,119510.0,0.29682675]
[1755011795582,0.2898821,119520.0,119510.0,0.29682675]
[1755011795978,0.1798821,119520.0,119510.0,0.29682675]
[1755011800481,0.1652321,119520.0,119510.0,0.29682675]
[1755011800685,0.3000458,119530.0,119520.0,0.0836621]
[1755011800884,0.3317058,119530.0,119520.0,0.2019521]
[1755011801085,0.3317058,119530.0,119520.0,0.71037958]
[1755011801286,0.1989747,119530.0,119520.0,0.71037958]
[1755011802186,0.1781647,119530.0,119520.0,0.71037958]
[1755011802777,0.084655,119530.0,119520.0,1.51925958]
[1755011802983,0.001,119530.0,119520.0,1.51925958]
[1755011804487,0.001,119530.0,119520.0,1.52225958]
[1755011804790,0.89208068,119550.0,119540.0,0.0836481]
[1755011804991,0.4553132,119550.0,119540.0,0.1315281]
[1755011805181,0.4553132,119550.0,119540.0,0.2019381]
[1755011805382,0.4708032,119550.0,119540.0,0.2019381]
[1755011805887,0.97923068,119550.0,119540.0,0.2019381]
[1755011806890,0.4708032,119550.0,119540.0,0.2019381]
[1755011807489,0.4062432,119550.0,119540.0,0.2049381]
[1755011807688,0.3225952,119550.0,119540.0,0.2049381]
[1755011807889,0.3570152,119550.0,119540.0,0.2049381]
[1755011808292,0.3716652,119550.0,119540.0,0.2049381]
[1755011808991,0.3871552,119550.0,119540.0,0.2049381]
[1755011809288,0.89558268,119550.0,119540.0,0.2049381]
[1755011809591,0.3871552,119550.0,119540.0,0.2049381]
[1755011809786,0.3716652,119550.0,119540.0,0.2049381]
[1755011809983,0.3316652,119550.0,119540.0,0.2049381]
[1755011811095,0.3471552,119550.0,119540.0,0.2049381]
[1755011811393,0.2635072,119550.0,119540.0,0.2049381]
[1755011811595,0.2635072,119550.0,119540.0,0.71336558]
[1755011811890,0.2635072,119550.0,119540.0,0.2049381]
[1755011812094,0.2635072,119550.0,119540.0,1.0128981]
[1755011812394,0.2635072,119550.0,119540.0,1.52132558]
[1755011812693,0.2635072,119550.0,119540.0,1.0128981]
[1755011813089,0.2635072,119550.0,119540.0,1.52132558]
[1755011814395,0.2635072,119550.0,119540.0,1.0128981]
[1755011815892,0.2635072,119550.0,119540.0,1.52132558]
[1755011816694,0.0836357,119560.0,119550.0,0.167272]
[1755011816898,0.1552957,119560.0,119550.0,0.89086208]
[1755011817097,0.2043657,119560.0,119550.0,0.96127208]
[1755011817295,0.0836275,119570.0,119560.0,0.0836343]
[1755011817596,0.3835752,119580.0,119570.0,0.0836273]
[1755011817894,0.5307252,119580.0,119570.0,0.2019173]
[1755011818703,0.5317252,119580.0,119570.0,0.2019173]
[1755011819298,0.2317745,119580.0,119570.0,0.71034478]
[1755011819493,0.101,119580.0,119570.0,0.71034478]
[1755011819797,0.001,119580.0,119570.0,0.71034478]
[1755011820398,0.001,119580.0,119570.0,0.96122218]
[1755011822401,0.001,119580.0,119570.0,1.12847818]
[1755011822809,0.001,119580.0,119570.0,0.6284433]
[1755011823202,0.001,119580.0,119570.0,1.13687078]
[1755011823705,0.001,119580.0,119570.0,0.96961478]
[1755011832219,0.04534,119620.0,119610.0,0.0835993]
[1755011832418,0.1779723,119620.0,119610.0,1.51603678]
[1755011833523,0.1809723,119620.0,119610.0,1.51603678]
[1755011833926,0.1809723,119620.0,119610.0,1.0076093]
[1755011834225,0.1809723,119620.0,119610.0,1.51603678]
[1755011834226,0.1859723,119620.0,119610.0,1.51603678]
[1755011834522,0.1829723,119620.0,119610.0,1.51603678]
[1755011834725,0.1779723,119620.0,119610.0,1.51603678]
[1755011835024,0.1779723,119620.0,119610.0,1.0076093]
[1755011837324,0.1779723,119620.0,119610.0,1.51603678]
[1755011839727,0.68639978,119620.0,119610.0,1.0068493]
[1755011840728,0.1779723,119620.0,119610.0,1.0068493]
[1755011840928,0.68639978,119620.0,119610.0,1.0068493]
[1755011842029,0.80867978,119620.0,119610.0,0.8886793]
[1755011842231,0.0835993,119610.0,119600.0,1.0796863]
[1755011842424,0.81868678,119610.0,119600.0,1.0796863]
[1755011842624,0.81868678,119610.0,119600.0,1.1274163]
[1755011843623,0.81868678,119610.0,119600.0,0.191042]
[1755011843824,0.81868678,119610.0,119600.0,1.044822]
[1755011844020,0.81868678,119610.0,119600.0,0.8884803]
[1755011844227,0.81868678,119610.0,119600.0,0.9123203]
[1755011844532,0.81868678,119610.0,119590.0,0.2149562]
[1755011844732,0.64965368,119600.0,119590.0,1.0295262]
[1755011844927,0.82869368,119600.0,119590.0,1.0295262]
[1755011845126,0.81869368,119600.0,119590.0,1.0436762]
[1755011845321,0.69869368,119600.0,119590.0,1.0436762]
[1755011845923,0.69869368,119600.0,119590.0,0.9969462]
[1755011846127,0.81869368,119600.0,119590.0,0.1920662]
[1755011846329,0.81869368,119600.0,119590.0,1.0457662]
[1755011846930,0.81869368,119600.0,119590.0,0.9631535]
[1755011847132,0.81869368,119600.0,119590.0,0.10586]
[1755011847328,0.81869368,119600.0,119590.0,0.003]
[1755011847633,0.81869368,119600.0,119590.0,0.02684]
[1755011848034,0.81969368,119600.0,119590.0,0.02584]
[1755011849126,0.82069368,119600.0,119590.0,0.02384]
[1755011849536,1.62533368,119600.0,119590.0,0.02384]
[1755011849736,0.0836205,119580.0,119570.0,0.2927665]
[1755011850036,0.69870798,119580.0,119570.0,1.0742094]
[1755011850437,0.1902805,119580.0,119570.0,1.0980494]
[1755011850730,0.68642798,119580.0,119570.0,1.0980494]
[1755011850937,0.69870798,119580.0,119570.0,1.0980494]
[1755011851136,0.69870798,119580.0,119570.0,1.1020494]
[1755011851433,0.68642798,119580.0,119570.0,1.1020494]
[1755011851633,0.1780005,119580.0,119570.0,1.1020494]
[1755011856235,0.1780005,119580.0,119570.0,1.61047688]
[1755011856737,0.1780005,119580.0,119570.0,1.1020494]
[1755011859335,0.79794798,119580.0,119570.0,0.9342752]
[1755011859535,0.79794798,119580.0,119570.0,1.0179027]
[1755011860126,0.79794798,119580.0,119570.0,0.1161652]
[1755011860332,0.79794798,119580.0,119570.0,1.0174127]
[1755011860533,0.2895205,119580.0,119570.0,1.0174127]
[1755011860836,0.79794798,119580.0,119570.0,1.0174127]
[1755011861036,0.79794798,119580.0,119570.0,0.9337852]
[1755011861226,0.79794798,119580.0,119570.0,0.1299052]
[1755011861430,0.81022798,119580.0,119570.0,0.1299052]
[1755011861834,0.81022798,119580.0,119570.0,0.2135327]
[1755011863840,0.81022798,119580.0,119570.0,0.1299052]
[1755011864040,0.81022798,119580.0,119570.0,0.2135327]
[1755011865237,0.2033905,119580.0,119570.0,0.72196018]
[1755011865543,0.1936205,119580.0,119570.0,0.72196018]
[1755011866337,0.0836205,119580.0,119570.0,0.72196018]
[1755011866535,0.0836205,119580.0,119570.0,1.52552018]
[1755011867737,0.26784388,119590.0,119580.0,0.0836205]
[1755011867933,0.26784388,119590.0,119580.0,0.71236798]
[1755011868737,0.26784388,119590.0,119580.0,0.2039405]
[1755011869040,0.26784388,119590.0,119580.0,0.71236798]